Cogmind - Beta 17 @@@ ROGUE MODE // 2026.07.28 @ 18:01:59 Player: Clog Result: Destroyed by S-27 Virus with Autogun Performance ------------- Evolutions (3) 1500 Regions Visited (5) 1000 Robots Destroyed (60) 300 Value Destroyed (2155) 2155 Prototype IDs (24) 480 Alien Tech Used (0) 0 Bonus (9303) 9303 TOTAL SCORE: 14738 Bonus ------- Follower Combat Kills 155 Prayed to X0-1V1 5000 Major X0-1V1 Interference 4000 Entered Garrisons 200 Friendly Fire -52 Cogmind --------- Core Integrity 0/600 Matter 629/700 Energy 899/900 System Corruption 7% Temperature Hot (208) Movement Core (50) Location -7/Garrison Parts ------- > --- POWER (1) -------- (None) > --- PROPULSION (4) --- (None) > --- UTILITY (6) ------ Improved Targeting Computer (fused) Self-contained Transmogrifier > --- WEAPON (2) ------- (None) > --- INVENTORY (5) ---- Light Nuclear Core Light Treads Multitool Peak State ------------ > --- POWER ------------ Heavy Deuterium Engine > --- PROPULSION ------- Spiked Treads Spiked Treads Armored Treads Advanced Treads > --- UTILITY ---------- Small Storage Unit Advanced Terrain Scan Processor Improved Targeting Computer Makeshift Light Armor Plating Self-contained Transmogrifier X0-1V1's Piety Tracker > --- WEAPON ----------- Beam Rifle Precision Beam Rifle Precision Beam Rifle Makeshift Hammer > --- INVENTORY -------- Light Nuclear Core Light Treads Light Armor Plating Self-contained Transmogrifier Heavy EM Pulse Gun Precision Shock Rifle Subdweller Shrapnel Launcher Multitool [Rating: 64] Favorites ----------- Power Ion Engine Engine Ion Engine Power Core Nuclear Core Propulsion Light Treads Treads Light Treads Flight Unit Surge Thruster Utility Small Storage Unit Device Self-contained Transmogrifier Storage Small Storage Unit Processor Improved Targeting Computer Protection Makeshift Light Armor Plating Weapon Assault Rifle Energy Gun Precision Beam Rifle Ballistic Gun Assault Rifle Launcher Subdweller Shrapnel Launcher Special Weapon Remote Datajack Impact Weapon Maul Build | -11 -10 -10 -8 -7 -7 ------- Run | Yrd Mat Sub Mat Fac Gar Slots Evolved 6 | . . . 4 2 . Power . | . . . . . . Propulsion 2 | . . . 1 1 . Utility 4 | . . . 3 1 . Weapon . | . . . . . . Parts Attached 40 | 7 1 12 13 2 5 Power 1 | 1 . . . . . Engine 1 | 1 . . . . . Core . | . . . . . . Reactor . | . . . . . . Propulsion 12 | 2 . 2 4 1 3 Treads 9 | 2 . 2 4 1 . Leg . | . . . . . . Wheel . | . . . . . . Hover . | . . . . . . Flight 3 | . . . . . 3 Utility 7 | 2 1 . 3 1 . Device 5 | 1 1 . 2 1 . Storage 1 | 1 . . . . . Processor . | . . . . . . Hackware . | . . . . . . Protection 1 | . . . 1 . . Artifact . | . . . . . . Weapon 20 | 2 . 10 6 . 2 Energy Gun 9 | . . 3 4 . 2 Energy Cannon . | . . . . . . Ballistic Gun 7 | 2 . 4 1 . . Ballistic Cannon . | . . . . . . Launcher 1 | . . 1 . . . Special Weapon 1 | . . 1 . . . Impact Weapon 2 | . . 1 1 . . Slashing Weapon . | . . . . . . Piercing Weapon . | . . . . . . Special Melee Weapon . | . . . . . . Unidentified Prototypes 3 | . 1 . 1 . 1 Parts Lost 20 | . . 6 . . 14 Power 2 | . . 1 . . 1 Propulsion 8 | . . 2 . . 6 Utility 2 | . . . . . 2 Weapon 8 | . . 3 . . 5 Highest Loss Streak 14 | . . 2 . . 14 To Critical Strikes . | . . . . . . Average Backups 6 | 1 3 7 6 7 7 Power . | . 1 . . 1 1 Propulsion . | . . . . 1 1 Utility 1 | . 1 2 1 1 . Weapon 2 | . . 2 2 2 2 Tool/Special . | . . . . . . Unused Backups 19 | . . 16 . . 3 Power 4 | . . 3 . . 1 Propulsion 2 | . . 2 . . . Utility 6 | . . 5 . . 1 Weapon 6 | . . 6 . . . Tool/Special 1 | . . . . . 1 Average Slot Usage (%) 94 | . 100 96 85 88 78 Engine 12 | . 14 13 6 6 4 Treads 26 | . 28 28 18 18 18 Device 14 | . 14 13 15 18 13 Storage 12 | . 14 13 7 6 5 Protection 1 | . . . 6 6 5 Energy Gun 9 | . . 10 10 18 5 Ballistic Gun 14 | . 28 14 11 3 . Impact Weapon 1 | . . . 6 6 2 Peak Build Rating 64 | 7 19 28 60 63 64 Average Rating 26 | 4 7 22 49 59 44 On Entrance 28 | . 7 19 24 60 63 Avg Prop Armor Cover (%) 6 | . . . . . 6 Naked Turns . | . . . . . . Heaviest Build 36 | 15 15 21 34 36 32 Greatest Support 82 | 40 40 62 62 82 82 Greatest Overweight (x) 4 | . . . 1 . 4 Average Overweight (x) . | . . . . . . Largest Inventory Capacity 8 | 8 8 8 8 8 8 Average Capacity 7 | 7 8 8 8 8 7 Most Carried 8 | 4 8 8 8 8 8 Average Carried 6 | 1 3 7 6 7 7 Final Capacity 8 | 8 8 8 8 8 5 Final Carried 8 | 1 7 7 7 8 3 Transmogrified Parts 24 | . . 15 3 3 3 Integrity Recovered 440 | . . 403 15 . 22 Class Distribution -------------------- 80% | Mutant 11% | Tank Dominant Class ---------------- Mutant | -10/Materials Mutant | -10/Subcaves Tank | -8/Materials Tank | -7/Factory Derelict-Mutant | -7/Garrison Resources | -11 -10 -10 -8 -7 -7 ----------- Run | Yrd Mat Sub Mat Fac Gar Matter Collected 1795 | 238 161 1098 289 . 9 Remotely . | . . . . . . Salvage Created 1915 | 41 194 1130 538 . 12 Parts 108 | 8 6 61 29 . 4 Haulers Intercepted 3 | . 2 . 1 . . Recyclers Shooed . | . . . . . . Parts Field Recycled . | . . . . . . Retrieved Matter . | . . . . . . Parts Self-Destructed 48 | . . 48 . . . Prevented 2 | . . 2 . . . Parts Restored . | . . . . . . Kills | -11 -10 -10 -8 -7 -7 ------- Run | Yrd Mat Sub Mat Fac Gar Combat Hostiles Destroyed 51 | . 3 37 10 . 1 Guns 38 | . 3 25 10 . . AOE 13 | . . 12 . . 1 Classes Destroyed 13 | 1 2 4 5 . 1 Worker 1 | . . . 1 . . Builder 1 | . . . 1 . . Tunneler 2 | 2 . . . . . Hauler 3 | . 2 . 1 . . Recycler 1 | . . . 1 . . Watcher 1 | . . . 1 . . Swarmer 23 | . . 19 4 . . Cutter 1 | . . . . . 1 Grunt 20 | . 3 12 5 . . Sentry 1 | . . . 1 . . Heavy 1 | . . 1 . . . Artisan 1 | . . 1 . . . Subdweller 5 | . . 5 . . . Best Kill Streak 5 | 1 4 5 5 . 1 Combat Bots Only 5 | . 2 5 4 . 1 Max Kills in Single Turn 4 | 1 2 4 2 . 1 Gunslinging 1 | . 1 1 . . . Exploded 4 | . . 4 . . 1 Melee . | . . . . . . Uniques/NPCs Destroyed . | . . . . . . Combat | -11 -10 -10 -8 -7 -7 -------- Run | Yrd Mat Sub Mat Fac Gar Hostile Shots Fired 641 | . 10 151 57 7 416 Missed 229 | . 3 47 13 2 164 Hits 412 | . 7 104 44 5 252 Melee 3 | . . . . . 3 Projectile 409 | . 7 104 44 5 249 AOE 6 | . . 4 . . 2 Critical Strikes 6 | . . 1 2 . 3 Damage Taken 4683 | . 77 1639 484 83 2400 Core 1319 | . 24 335 107 . 853 Absorbed by Shields . | . . . . . . Ignored by Resistances 87 | . . 18 65 . 4 Core Remaining (%) 82 | 100 . 70 76 . . Volleys Fired 135 | 3 19 81 23 . 9 Largest 4 | 2 2 2 4 . 2 Hottest 239 | 40 40 131 239 . 100 Shots Fired 279 | 6 38 150 75 . 10 Gun 272 | 6 38 148 73 . 7 Cannon . | . . . . . . Launcher 5 | . . 2 . . 3 Special 2 | . . . 2 . . Kinetic 170 | 6 38 70 53 . 3 Thermal 41 | . . 18 20 . 3 Explosive . | . . . . . . Electromagnetic 66 | . . 62 . . 4 Robot Hit Streak 10 | 4 8 9 10 . 8 Robot Miss Streak 5 | 1 3 4 5 . 1 Penetration Max 1 | . . 1 . . . Secondary Targets 7 | . 1 6 . . . Max Gunslinging Chain 1 | . 1 1 . . . Shots Hit Robots 178 | 5 23 90 51 . 9 Core Hits 97 | 2 10 56 22 . 7 Critical Kills 1 | . . 1 . . . Critical Parts Destroyed 4 | 1 . 2 1 . . Critical Strikes 8 | 1 . 3 3 . 1 Burn 3 | . . . 2 . 1 Destroy 4 | 1 . 3 . . . Smash 1 | . . . 1 . . Melee Attacks 4 | . . 2 2 . . Impact 4 | . . 2 2 . . Slashing . | . . . . . . Piercing . | . . . . . . Sneak Attacks 2 | . . . 2 . . Combat Hostiles . | . . . . . . Follow-up Attacks . | . . . . . . Damage Inflicted 3536 | 61 295 1769 964 . 447 Guns 2514 | 61 286 1254 785 . 128 Cannons . | . . . . . . Explosions 834 | . . 515 . . 319 Melee 179 | . . . 179 . . Ramming 9 | . 9 . . . . Kinetic 1858 | 61 286 677 515 . 319 Thermal 867 | . . 533 270 . 64 Explosive . | . . . . . . Electromagnetic 623 | . . 559 . . 64 Impact 179 | . . . 179 . . Slashing . | . . . . . . Piercing . | . . . . . . Highest Corruption 38 | . . 38 . . 7 Average Corruption 8 | . . 8 . . 5 Corruption Purged . | . . . . . . Corruption Blocked . | . . . . . . Effects 34 | . . 32 . . 2 Message Errors 8 | . . 8 . . . Matter Fused 10 | . . 10 . . . Heat Flow Errors 3 | . . 1 . . 2 Energy Discharges 5 | . . 5 . . . Data Loss (minor) 3 | . . 3 . . . Data Loss (major) 2 | . . 2 . . . Alerts 1 | . . 1 . . . Weapon Failures 2 | . . 2 . . . Overload Shots . | . . . . . . Overflow Damage 239 | . . 68 149 . 22 Projectiles . | . . . . . . Explosions 90 | . . 68 . . 22 Melee 149 | . . . 149 . . Knockbacks 1 | . . . 1 . . Impact 1 | . . . 1 . . Kinetic . | . . . . . . Secondary . | . . . . . . Self-Inflicted Damage 156 | . . 93 . . 63 Shots 4 | . . 2 . . 2 Rammed 1 | . 1 . . . . Targets Rammed 1 | . 1 . . . . Kicked . | . . . . . . Crushed . | . . . . . . Highest Temperature 362 | . . 245 362 . 204 Average Temperature 103 | . . 103 109 . 44 Received Heat Transfer 1197 | . 42 399 243 45 468 Siege Activations . | . . . . . . Martial Activations . | . . . . . . Shielding Activations . | . . . . . . Robots Disrupted . | . . . . . . Combat Hostiles . | . . . . . . Robots Corrupted 1 | . . . 1 . . Combat Hostiles . | . . . . . . Parts Fried 6 | . . 4 2 . . Impact Corruptions 3 | . . . 3 . . Robots Melted . | . . . . . . Combat Hostiles . | . . . . . . Parts Melted 2 | . . . 2 . . Heat Transferred 1719 | . . 757 777 . 185 Parts Sabotaged . | . . . . . . Parts Stolen . | . . . . . . Parts Stripped . | . . . . . . Power Chain Reactions 5 | . . 5 . . . Alert | -11 -10 -10 -8 -7 -7 ------- Run | Yrd Mat Sub Mat Fac Gar Maximum Alert Level 1 | . . . 1 . 1 Low Security (%) 78 | 100 100 . 38 100 87 Level 1 21 | . . . 61 . 12 Level 2 . | . . . . . . Level 3 . | . . . . . . Level 4 . | . . . . . . Level 5 . | . . . . . . High Security . | . . . . . . Max Security . | . . . . . . Peak Influence 357 | 5 44 . 357 21 243 Initial 241 | . . . 241 21 . Average 77 | 1 9 . 201 3 76 Influence Increases 1408 | 10 84 779 286 4 245 Destroy 0b10 Robot/C 1020 | . 60 740 200 . 20 Destroy 0b10 Robot/NC 45 | 10 10 . 25 . . Destroy Leader 58 | . 14 . 44 . . Allied During Kill 9 | . . 9 . . . Successful Hack 4 | . . . . 4 . Anti-Garrison Action 200 | . . . . . 200 Destroy Structure 27 | . . . 2 . 25 Lose Combat Pursuer 45 | . . 30 15 . . Influence Decreases 1303 | 10 84 313 705 51 140 Entered New Map 251 | . . . 225 26 . Time Decay 532 | 10 84 233 180 25 . Lost Part 180 | . . 40 . . 140 Lost Ally 40 | . . 40 . . . Purge Threat 300 | . . . 300 . . Squads Dispatched 4 | . 1 . 2 1 . Investigation 2 | . . . 1 1 . Extermination . | . . . . . . Reinforcement 2 | . 1 . 1 . . Assault . | . . . . . . Garrison . | . . . . . . Intercept . | . . . . . . Searches Triggered . | . . . . . . Construction Impeded 1 | . . . 1 . . Haulers Reinforced . | . . . . . . Active Scanning Responses . | . . . . . . Cargo Convoy Interrupts . | . . . . . . Stealth | -11 -10 -10 -8 -7 -7 --------- Run | Yrd Mat Sub Mat Fac Gar Distress Signals 3 | . 1 . 2 . . Communications Jammed . | . . . . . . Distress Signals . | . . . . . . Times Spotted 87 | . 5 47 17 3 15 Peak Tracking Total 14 | . 2 5 5 3 14 Tactical Retreats 3 | . . 2 1 . . Traps | -11 -10 -10 -8 -7 -7 ------- Run | Yrd Mat Sub Mat Fac Gar Traps Triggered 3 | . . 1 1 . 1 Indirectly . | . . . . . . Trap Hack Attempts . | . . . . . . Triggered . | . . . . . . Disarmed . | . . . . . . Reprogrammed . | . . . . . . Reused . | . . . . . . Traps Extracted . | . . . . . . Installed . | . . . . . . Triggered . | . . . . . . Machines | -11 -10 -10 -8 -7 -7 ---------- Run | Yrd Mat Sub Mat Fac Gar Machines Disabled 6 | . . 1 . . 5 Max in Single Turn 3 | . . 1 . . 3 Garrison Relay 4 | . . . . . 4 Machines Repaired . | . . . . . . Machines Dismantled . | . . . . . . Machines Sabotaged . | . . . . . . Overloaded Fab Kills . | . . . . . . Hacking | -11 -10 -10 -8 -7 -7 --------- Run | Yrd Mat Sub Mat Fac Gar Machines Accessed 9 | . 3 2 3 1 . Terminals 6 | . 3 . 3 . . Fabricators . | . . . . . . Repair Stations . | . . . . . . Recycling Units . | . . . . . . Scanalyzers . | . . . . . . Garrison Access 1 | . . . . 1 . Total Hacks 28 | . 6 13 6 3 . Successful 17 | . . 13 3 1 . Failed 11 | . 6 . 3 2 . Catastrophic 5 | . 3 . 2 . . Database Lockouts . | . . . . . . Manual 14 | . 7 1 6 . . Terminals 12 | . 6 . 6 . . Fabricators . | . . . . . . Repair Stations . | . . . . . . Recycling Units . | . . . . . . Scanalyzers . | . . . . . . Garrison Access 3 | . . . . 3 . Terminal Hacks 16 | . . 13 3 . . Record 12 | . . 12 . . . Alert Level 1 | . . . 1 . . Unreport Threat 2 | . . . 2 . . Proto ID Catalog 1 | . . 1 . . . Fabricator Hacks . | . . . . . . Repair Station Hacks . | . . . . . . Recycling Unit Hacks . | . . . . . . Scanalyzer . | . . . . . . Garrison Access Hacks 1 | . . . . 1 . Unlock Access 1 | . . . . 1 . Unauthorized Hacks . | . . . . . . Terminals . | . . . . . . Fabricators . | . . . . . . Repair Stations . | . . . . . . Recycling Units . | . . . . . . Scanalyzers . | . . . . . . Garrison Access . | . . . . . . Data Cores Recovered . | . . . . . . Used . | . . . . . . Hacking Detections 7 | . 3 . 3 1 . Full Trace Events 1 | . . . . 1 . Feedback Events . | . . . . . . Feedback Blocked . | . . . . . . Robot Schematics Acquired . | . . . . . . Robots Built . | . . . . . . Authchips . | . . . . . . Time . | . . . . . . Total Robot Build Rating . | . . . . . . Part Schematics Acquired . | . . . . . . Parts Built . | . . . . . . Authchips . | . . . . . . Time . | . . . . . . Total Part Build Rating . | . . . . . . Part Studies Acquired . | . . . . . . Parts Repaired . | . . . . . . Time . | . . . . . . Parts Recycled . | . . . . . . Recycled Matter . | . . . . . . Retrieved Matter . | . . . . . . Retrieved Components . | . . . . . . Parts Scanalyzed . | . . . . . . Part Schematics Acquired . | . . . . . . Parts Damaged . | . . . . . . Bothacking | -11 -10 -10 -8 -7 -7 ------------ Run | Yrd Mat Sub Mat Fac Gar Used RIF Installer . | . . . . . . Robots Hacked . | . . . . . . Non-combat . | . . . . . . Combat . | . . . . . . Robot Hacks Applied . | . . . . . . Relay Couplers Released 18 | . . . . . 18 Machine Destruction 18 | . . . . . 18 Fabnet Peak Effective % . | . . . . . . Robots Rewired . | . . . . . . Allies Hacked . | . . . . . . Hacks Repelled . | . . . . . . Allies | -11 -10 -10 -8 -7 -7 -------- Run | Yrd Mat Sub Mat Fac Gar Total Allies 6 | . . 6 . . . Largest Group 3 | . . 3 . . . Highest-Rated Group 90 | . . 90 . . . Highest-Rated Ally 90 | . . 90 . . . Total Orders . | . . . . . . Ally Attacks 38 | . . 38 . . . Total Damage 635 | . . 635 . . . Kills 6 | . . 6 . . . Allies Corrupted . | . . . . . . Allies Melted . | . . . . . . X0-1V1 Amusement Gains 142 | . 13 32 3 3 91 Good Acts 57 | . . 56 . . 1 Bad Acts 84 | . . 73 4 2 5 Intel | -11 -10 -10 -8 -7 -7 ------- Run | Yrd Mat Sub Mat Fac Gar Active Infowar (turns) 365 | 4 332 . . 29 . Seismic 365 | 4 332 . . 29 . Robot Analysis Total . | . . . . . . Derelict Logs Recovered . | . . . . . . Drone Launches . | . . . . . . Drone Recoveries . | . . . . . . Exploration | -11 -10 -10 -8 -7 -7 ------------- Run | Yrd Mat Sub Mat Fac Gar Turns Passed 3756 | 85 340 2577 370 222 162 Spaces Moved 2054 | 47 165 1457 143 141 101 Core 34 | 12 . . . . 22 Treads 2005 | 35 165 1457 143 141 64 Legs . | . . . . . . Wheels . | . . . . . . Hover . | . . . . . . Flight 15 | . . . . . 15 Fastest Speed 32 | 50 160 152 155 155 32 Average Speed 156 | 131 160 157 174 155 129 Slowest Speed 260 | 160 160 160 260 158 250 Overloaded Moves . | . . . . . . Propulsion Burnouts . | . . . . . . Robots Hopped . | . . . . . . Potential Cave-ins . | . . . . . . Cave-ins Triggered . | . . . . . . Exploration Rate (%) 23 | 5 29 62 16 4 25 Regions Visited 5 Branch Regions 1 Pre-discovered Areas . | . . . . . . Known Exits Taken 2 | . . 1 . 1 . Unknown Exits Taken 3 | 1 1 . 1 . . Scrap Searched 9 | . . 9 . . . Spaces Dug . | . . . . . . Terrain Destroyed 68 | . . 53 . . 15 Melee . | . . . . . . Projectile . | . . . . . . AOE 68 | . . 53 . . 15 Terrain Rammed . | . . . . . . Walls Destroyed . | . . . . . . Machines Disabled . | . . . . . . Actions | -11 -10 -10 -8 -7 -7 --------- Run | Yrd Mat Sub Mat Fac Gar Total 2347 | 64 203 1603 211 144 122 Wait 32 | . 11 7 14 . . Move 2049 | 46 164 1456 142 140 101 Hop . | . . . . . . Pick Up 51 | 8 6 24 10 1 2 Fast Attach 6 | . . . 2 2 2 Attach 35 | 7 1 13 9 . 5 Detach 8 | . 1 5 1 . 1 Swap 2 | . . . 2 . . Drop 24 | . . 15 6 1 2 Fire 135 | 3 19 81 23 . 9 Melee 4 | . . 2 2 . . Ram . | . . . . . . Kick . | . . . . . . Crush 1 | . 1 . . . . Escape Stasis . | . . . . . . Rewire . | . . . . . . Trap . | . . . . . . Miscellaneous . | . . . . . . Route ------- -11/Scrapyard -10/Materials (discovered 3 exits: [*Mat] / [*Min] / *Sub) -10/Subcaves (discovered 2 exits: *Mat / Rec) -8/Materials -7/Factory -7/Garrison History --------- Turn | Location | Event 2 | -11/Scrapyard | Met Revision 17 4 | -11/Scrapyard | Discovered new exit (range 16) 86 | -11/Scrapyard | Entered Materials 149 | -10/Materials | Discovered new exit (range 7) 187 | -10/Materials | Discovered new exit (range 16) 312 | -10/Materials | Build established: Mutant 404 | -10/Materials | Discovered new exit (range 5) 415 | -10/Materials | Prayed at D.C.S.S. Altar Unit 426 | -10/Materials | Entered Subcaves 453 | -10/Subcaves | X0-1V1 sent allied G-34 Mercenary (x2) 702 | -10/Subcaves | Energy generation permanently improved by X0-1V1 (+10; -100 max core) 740 | -10/Subcaves | X0-1V1 whisked you away to safety 1429 | -10/Subcaves | Core integrity fell below 50% 1457 | -10/Subcaves | Identified exit to Materials 1457 | -10/Subcaves | X0-1V1 revealed exit location to -8/Materials 1472 | -10/Subcaves | X0-1V1 sent hostile G-34 Mercenary (x4) 1479 | -10/Subcaves | X0-1V1 sent allied G-34 Mercenary (x3) 1496 | -10/Subcaves | X0-1V1 activates XOMVISION 1502 | -10/Subcaves | Core integrity restored by X0-1V1 (+36) 1507 | -10/Subcaves | Forcibly received Sfc. Transmogifier from X0-1V1 1521 | -10/Subcaves | Visited 4L-MR0's lab 1535 | -10/Subcaves | Found Sfc. Transmogrifier 1541 | -10/Subcaves | Identified exit to Recycling 1541 | -10/Subcaves | X0-1V1 revealed exit location to -7/Recycling 1601 | -10/Subcaves | Core integrity restored by X0-1V1 (+39) 1615 | -10/Subcaves | X0-1V1 revealed exit location to -8/Materials 1628 | -10/Subcaves | System corruption reached 10% 1645 | -10/Subcaves | X0-1V1 tapped a No Entrance sign 1664 | -10/Subcaves | X0-1V1 rewrote G-34 Mercenary IFF filter 1670 | -10/Subcaves | X0-1V1 sent hostile S-10 Pest (x3) 1716 | -10/Subcaves | Core integrity restored by X0-1V1 (+24) 1745 | -10/Subcaves | X0-1V1 sent hostile S-10 Pest (x5) 1817 | -10/Subcaves | System corruption reached 30% 1829 | -10/Subcaves | X0-1V1 sent hostile S-10 Pest (x5) 1844 | -10/Subcaves | X0-1V1 sent you into danger 1899 | -10/Subcaves | X0-1V1 activates XOMVISION 1905 | -10/Subcaves | X0-1V1 sent hostile S-10 Pest (x3) 2046 | -10/Subcaves | Visited Clippyterm 2164 | -10/Subcaves | X0-1V1 sent hostile G-34 Mercenary (x3) 2238 | -10/Subcaves | X0-1V1 sent hostile S-10 Pest (x3) 2252 | -10/Subcaves | X0-1V1 activates XOMVISION 2267 | -10/Subcaves | Core integrity restored by X0-1V1 (+24) 2395 | -10/Subcaves | X0-1V1 sent hostile G-34 Mercenary (x3) 2427 | -10/Subcaves | Core integrity restored by X0-1V1 (+27) 2456 | -10/Subcaves | X0-1V1 mutated your Weapon slot to Propulsion slot 2502 | -10/Subcaves | X0-1V1 sent hostile G-34 Mercenary (x3) 2507 | -10/Subcaves | X0-1V1 sent allied H-61 Shepherd (x1) 2509 | -10/Subcaves | Core integrity restored by X0-1V1 (+30) 2512 | -10/Subcaves | X0-1V1 activates XOMVISION 2614 | -10/Subcaves | X0-1V1 rewrote H-61 Shepherd IFF filter 2793 | -10/Subcaves | Core integrity restored by X0-1V1 (+37) 2817 | -10/Subcaves | X0-1V1 activates XOMVISION 2892 | -10/Subcaves | Core integrity restored by X0-1V1 (+33) 2895 | -10/Subcaves | X0-1V1 mutated your Propulsion slot to Weapon slot 2897 | -10/Subcaves | X0-1V1 sent hostile G-34 Mercenary (x4) 2911 | -10/Subcaves | Weapon slot count temporarily expanded by X0-1V1 (+3) 3003 | -10/Subcaves | Entered Materials 3003 | -8/Materials | Evolved 4 slots: Propulsion x1, Utility x3 3062 | -8/Materials | Attached CPS modules to Y-45 Defender 3370 | -8/Materials | Discovered new exit (range 3) 3373 | -8/Materials | Build established: Tank 3373 | -8/Materials | Entered Factory 3373 | -7/Factory | Evolved 2 slots: Propulsion x1, Utility x1 3581 | -7/Factory | Identified exit to Garrison 3595 | -7/Factory | Entered Garrison 3680 | -7/Garrison | X0-1V1 sent you into danger 3682 | -7/Garrison | Garrison Relay disabled 3682 | -7/Garrison | Garrison Relay disabled 3684 | -7/Garrison | Garrison Relay disabled 3724 | -7/Garrison | Core integrity fell below 50% 3735 | -7/Garrison | Core integrity fell below 20% 3739 | -7/Garrison | Triggered checkpoint 3746 | -7/Garrison | X0-1V1 rescued you from certain death 3747 | -7/Garrison | Triggered checkpoint 3751 | -7/Garrison | Triggered checkpoint 3751 | -7/Garrison | Triggered checkpoint 3757 | -7/Garrison | Destroyed by S-27 Virus with Autogun Last Messages --------------- 03739_ Surge Thruster destroyed. 03742_ Hvy. EM Pulse Gun destroyed. 03745_ Prc. Shock Rifle destroyed. 03745_ X0-1V1 is amused. 03745_ P-60 Hacker resets Y-54 Guardian, system corruption cleaned. 03746_ Sfc. Transmogrifier converts Adv. Terrain Scan Processor into Thermal Defense Suite. 03746_ X0-1V1 is amused. 03746_ X0-1V1 barely happened to notice your imminent destruction. 03746_ Core integrity partially restored (246). The surroundings shift and blur. 03747_ Beams of light sweep through the air. An alarm sounds. 03752_ Discarded Thermal Defense Suite. 03753_ Penetrated by Slug. 03757_ System corrupted: Heat flow error (+208). 03757_ X0-1V1 howls with laughter! [Achievement: This Is Interesting...] Map ----- +----------------------------------------------------+ | ?????????????????????????????????????????????????? | | ?????????????????????????????????????????????????? | | ?????????????????????????????????????????????????? | | ?????????????????????????????????????????????????? | | ?????????????????????????????????????????????????? | | ?????????????????????????????????????????????????? | | ?????????????????????????????????????????????????? | | ?????????????????????????????????????????????????? | | ?????????????????????????????????????????????????? | | ?????????????????????????????????????????????????? | | ?????????????????????????????????????????????????? | | ?????????????????????????????????????????????????? | | ?????????????????????????????????????????????????? | | ?????????????????????????????????????????????????? | | ?????????????????????????????????????????????????? | | ????????????????????????????? ? ????????????? | | ??????????????????????????? ? ? ???????? | | ???????????????????????????# ?# #? #??????? | | ???????????????????????????# ## ## ###????? | | ???????????????????????????" #????? | | ???????????????????????????" #????? | | ???????????????????????????" #????? | | ???????????????????????????" #????? | | ???????????????????????????# ## ## #??????? | | ?????????????????###?####### ! ## ## #??????? | | ##???????????????# @ s ???? | | "#???????????????# ??? | | ##???????????????# ######## s ####???? | | #???????????????# #??????## ## ###+##??????? | | ####?????????????# #???????# ## #?? #???????? | | ############### #???????# ######????#???????? | | # #???????# #?????????????????? | | !##### ######### #???????# #?????????????????? | | ####?????????????# #???????# #?????????????????? | | ?????????????????# ######### #?????????????????? | | #????????????????# #?????????????????? | | #????????????????# #?????????????????? | | ?????????????????# ############?????????????????? | | ?????????????????# #????????????????????????????? | | ?????????????????# #????????????????????????????? | | ?????????????????# #????????????????????????????? | | ?????????????????# #????????????????????????????? | | ?????????????????# #????????????????????????????? | | ?????????????????# #????????????????????????????? | | ?????????????????# #????????????????????????????? | | ?????????????????# #????????????????????????????? | | ?????????????????# #????????????????????????????? | | ????????########## #????????????????????????????? | | ????????# #????????????????????????????? | | ????????# #????????????????????????????? | +----------------------------------------------------+ Best States ------------- Heat Dissipation 77 Energy Generation 48 Energy Capacity 1110 Matter Stores 700 Matter Capacity 700 Sight Range 19 Terrain Scan Density 210 Armor Coverage 100 Resistance: TH 20 Evasion (%) 50 Targeting Accuracy 6 Recoil Reduction 4 Item Schematics ----------------- None Robot Schematics ------------------ None Fabricated ------------ Nothing Repaired ---------- Nothing Studied --------- None Alien Tech Used ----------------- None Achievements -------------- Art Critic Backstab Chaos Is Inevitable Mistaken Identity This Is Interesting... Challenges ------------ None Game ------ Seed AluminumRainbowAssimilator Manual? 0 Play Time 00:38:01 Cumulative 23.3 hours Start 2026.07.28 @ 17:24:28 End 2026.07.28 @ 18:01:59 Sessions 1 Manual Loads 0 Difficulty Rogue Special Mode None Game No. 25 Rogue 22 Adventurer 3 Explorer 0 Win Type - Total 1 Types 1/0/0/0/0/0/0/0/0/0 Lore% 25 Gallery% 20 Achievement% 23 Wizard Run 0 Options --------- Layout 1 ASCII 0 Keyboard 0 Movement Mouse Keybinds 0 Fullscreen 1 Font 32/SmallcapsGlow Map View 50x35 Zoom Use 0% Tactical HUD 1 Map Filters NONE Filters NONE Steam 1 RUN: edf27fdc-15e9-466f-ad92-cc0950fc6c07